{"text_format":"3","workbook":"xlsx","n_sheets":5,"sheets":["Informācijas panelis","Ienākumi un izdevumi","Budžeta atskaite","Datu saraksti","Kategoriju rakurstabula"],"not_rendered":{"charts":3,"defined_names":18,"pivot_tables":2},"read":"whole","date_system":"1900"}

{"sheet":"Informācijas panelis","index":0,"n_rows":21,"n_cols":16,"rows_kept":21,"merged":[[5,2,5,3],[8,9,8,10],[9,9,9,10],[10,9,10,10]]}
[]
[null,null,"Mājas budžets 2 nedēļām",{"$nulls":12},"INFORMĀCIJAS PANELIS"]
[]
[]
[]
[null,null,{"$f":"CHOOSE(Mēneša_numurs,D17,E17,F17,G17,H17,I17,J17,K17,L17,M17,N17,O17)","v":"JANVĀRIS"},null,1,{"$nulls":5},2014]
[]
[]
[null,null,"Kopā mēnesī","Kopā mēnesī",{"$nulls":5},"Kopā gadā",null,"Kopā gadā"]
[null,null,"IEŅĒMUMI","Izdevumi",{"$f":"SUMIF(Izdevumi[DATUMS],\"<=\"&Datums_mēneša_beigas,Izdevumi[Summa])-SUMIF(Izdevumi[DATUMS],\"<\"&Datums_mēneša_sākums,Izdevumi[Summa])","v":{"v":1075,"d":"1,075 €"}},{"$nulls":4},"IEŅĒMUMI",null,"Izdevumi",{"$f":"SUM(IF(YEAR(Izdevumi[DATUMS])=K6,Izdevumi[Summa]))","v":{"v":10242,"d":"10,242 €"}}]
[null,null,"IZDEVUMI","Ienākumi",{"$f":"SUMIF(Ienākumi[DATUMS],\"<=\"&Datums_mēneša_beigas,Ienākumi[Summa])-SUMIF(Ienākumi[DATUMS],\"<\"&Datums_mēneša_sākums,Ienākumi[Summa])","v":{"v":0,"d":"0 €"}},{"$nulls":4},"IZDEVUMI",null,"Ienākumi",{"$f":"SUM(IF(YEAR(Ienākumi[DATUMS])=K6,Ienākumi[Summa]))","v":{"v":12700,"d":"12,700 €"}}]
[]
[]
[]
[]
[]
[{"$nulls":3},"JANVĀRIS","FEBRUĀRIS","MARTS","APRĪLIS","MAIJS","JŪNIJS","JŪLIJS","AUGUSTS","SEPTEMBRIS","OKTOBRIS","NOVEMBRIS","DECEMBRIS"]
[null,null,"Ienākumi 1–15",{"$f":"SUMIFS(Ienākumi[Summa],Ienākumi[APRAKSTS],\"<=\"&D_vidus,Ienākumi[APRAKSTS],\">=\"&D_sākums)","v":{"v":0,"d":"0.00 €"}},{"$f":"SUMIFS(Ienākumi[Summa],Ienākumi[APRAKSTS],\"<=\"&D_vidus,Ienākumi[APRAKSTS],\">=\"&D_sākums)","v":{"v":0,"d":"0.00 €"}},{"$f":"SUMIFS(Ienākumi[Summa],Ienākumi[APRAKSTS],\"<=\"&D_vidus,Ienākumi[APRAKSTS],\">=\"&D_sākums)","v":{"v":0,"d":"0.00 €"}},{"$f":"SUMIFS(Ienākumi[Summa],Ienākumi[APRAKSTS],\"<=\"&D_vidus,Ienākumi[APRAKSTS],\">=\"&D_sākums)","v":{"v":0,"d":"0.00 €"}},{"$f":"SUMIFS(Ienākumi[Summa],Ienākumi[APRAKSTS],\"<=\"&D_vidus,Ienākumi[APRAKSTS],\">=\"&D_sākums)","v":{"v":0,"d":"0.00 €"}},{"$f":"SUMIFS(Ienākumi[Summa],Ienākumi[APRAKSTS],\"<=\"&D_vidus,Ienākumi[APRAKSTS],\">=\"&D_sākums)","v":{"v":0,"d":"0.00 €"}},{"$f":"SUMIFS(Ienākumi[Summa],Ienākumi[APRAKSTS],\"<=\"&D_vidus,Ienākumi[APRAKSTS],\">=\"&D_sākums)","v":{"v":0,"d":"0.00 €"}},{"$f":"SUMIFS(Ienākumi[Summa],Ienākumi[APRAKSTS],\"<=\"&D_vidus,Ienākumi[APRAKSTS],\">=\"&D_sākums)","v":{"v":0,"d":"0.00 €"}},{"$f":"SUMIFS(Ienākumi[Summa],Ienākumi[APRAKSTS],\"<=\"&D_vidus,Ienākumi[APRAKSTS],\">=\"&D_sākums)","v":{"v":0,"d":"0.00 €"}},{"$f":"SUMIFS(Ienākumi[Summa],Ienākumi[APRAKSTS],\"<=\"&D_vidus,Ienākumi[APRAKSTS],\">=\"&D_sākums)","v":{"v":0,"d":"0.00 €"}},{"$f":"SUMIFS(Ienākumi[Summa],Ienākumi[APRAKSTS],\"<=\"&D_vidus,Ienākumi[APRAKSTS],\">=\"&D_sākums)","v":{"v":0,"d":"0.00 €"}},{"$f":"SUMIFS(Ienākumi[Summa],Ienākumi[APRAKSTS],\"<=\"&D_vidus,Ienākumi[APRAKSTS],\">=\"&D_sākums)","v":{"v":0,"d":"0.00 €"}}]
[null,null,"Ienākumi 16-mēneša beigas",{"$f":"SUMIFS(Ienākumi[Summa],Ienākumi[APRAKSTS],\"<=\"&D_beigas,Ienākumi[APRAKSTS],\">=\"&D_vidus+1)","v":{"v":0,"d":"0.00 €"}},{"$f":"SUMIFS(Ienākumi[Summa],Ienākumi[APRAKSTS],\"<=\"&D_beigas,Ienākumi[APRAKSTS],\">=\"&D_vidus+1)","v":{"v":0,"d":"0.00 €"}},{"$f":"SUMIFS(Ienākumi[Summa],Ienākumi[APRAKSTS],\"<=\"&D_beigas,Ienākumi[APRAKSTS],\">=\"&D_vidus+1)","v":{"v":0,"d":"0.00 €"}},{"$f":"SUMIFS(Ienākumi[Summa],Ienākumi[APRAKSTS],\"<=\"&D_beigas,Ienākumi[APRAKSTS],\">=\"&D_vidus+1)","v":{"v":0,"d":"0.00 €"}},{"$f":"SUMIFS(Ienākumi[Summa],Ienākumi[APRAKSTS],\"<=\"&D_beigas,Ienākumi[APRAKSTS],\">=\"&D_vidus+1)","v":{"v":0,"d":"0.00 €"}},{"$f":"SUMIFS(Ienākumi[Summa],Ienākumi[APRAKSTS],\"<=\"&D_beigas,Ienākumi[APRAKSTS],\">=\"&D_vidus+1)","v":{"v":0,"d":"0.00 €"}},{"$f":"SUMIFS(Ienākumi[Summa],Ienākumi[APRAKSTS],\"<=\"&D_beigas,Ienākumi[APRAKSTS],\">=\"&D_vidus+1)","v":{"v":0,"d":"0.00 €"}},{"$f":"SUMIFS(Ienākumi[Summa],Ienākumi[APRAKSTS],\"<=\"&D_beigas,Ienākumi[APRAKSTS],\">=\"&D_vidus+1)","v":{"v":0,"d":"0.00 €"}},{"$f":"SUMIFS(Ienākumi[Summa],Ienākumi[APRAKSTS],\"<=\"&D_beigas,Ienākumi[APRAKSTS],\">=\"&D_vidus+1)","v":{"v":0,"d":"0.00 €"}},{"$f":"SUMIFS(Ienākumi[Summa],Ienākumi[APRAKSTS],\"<=\"&D_beigas,Ienākumi[APRAKSTS],\">=\"&D_vidus+1)","v":{"v":0,"d":"0.00 €"}},{"$f":"SUMIFS(Ienākumi[Summa],Ienākumi[APRAKSTS],\"<=\"&D_beigas,Ienākumi[APRAKSTS],\">=\"&D_vidus+1)","v":{"v":0,"d":"0.00 €"}},{"$f":"SUMIFS(Ienākumi[Summa],Ienākumi[APRAKSTS],\"<=\"&D_beigas,Ienākumi[APRAKSTS],\">=\"&D_vidus+1)","v":{"v":0,"d":"0.00 €"}}]
[null,null,"Izdevumi 1–15",{"$f":"SUMIFS(Izdevumi[Summa],Izdevumi[DATUMS],\"<=\"&D_vidus,Izdevumi[DATUMS],\">=\"&D_sākums)","v":{"v":150,"d":"150.00 €"}},{"$f":"SUMIFS(Izdevumi[Summa],Izdevumi[DATUMS],\"<=\"&D_beigas,Izdevumi[DATUMS],\">=\"&D_sākums)","v":{"v":1175,"d":"1,175.00 €"}},{"$f":"SUMIFS(Izdevumi[Summa],Izdevumi[DATUMS],\"<=\"&D_beigas,Izdevumi[DATUMS],\">=\"&D_sākums)","v":{"v":2392,"d":"2,392.00 €"}},{"$f":"SUMIFS(Izdevumi[Summa],Izdevumi[DATUMS],\"<=\"&D_beigas,Izdevumi[DATUMS],\">=\"&D_sākums)","v":{"v":0,"d":"0.00 €"}},{"$f":"SUMIFS(Izdevumi[Summa],Izdevumi[DATUMS],\"<=\"&D_beigas,Izdevumi[DATUMS],\">=\"&D_sākums)","v":{"v":0,"d":"0.00 €"}},{"$f":"SUMIFS(Izdevumi[Summa],Izdevumi[DATUMS],\"<=\"&D_beigas,Izdevumi[DATUMS],\">=\"&D_sākums)","v":{"v":0,"d":"0.00 €"}},{"$f":"SUMIFS(Izdevumi[Summa],Izdevumi[DATUMS],\"<=\"&D_beigas,Izdevumi[DATUMS],\">=\"&D_sākums)","v":{"v":0,"d":"0.00 €"}},{"$f":"SUMIFS(Izdevumi[Summa],Izdevumi[DATUMS],\"<=\"&D_beigas,Izdevumi[DATUMS],\">=\"&D_sākums)","v":{"v":0,"d":"0.00 €"}},{"$f":"SUMIFS(Izdevumi[Summa],Izdevumi[DATUMS],\"<=\"&D_beigas,Izdevumi[DATUMS],\">=\"&D_sākums)","v":{"v":0,"d":"0.00 €"}},{"$f":"SUMIFS(Izdevumi[Summa],Izdevumi[DATUMS],\"<=\"&D_beigas,Izdevumi[DATUMS],\">=\"&D_sākums)","v":{"v":0,"d":"0.00 €"}},{"$f":"SUMIFS(Izdevumi[Summa],Izdevumi[DATUMS],\"<=\"&D_beigas,Izdevumi[DATUMS],\">=\"&D_sākums)","v":{"v":0,"d":"0.00 €"}},{"$f":"SUMIFS(Izdevumi[Summa],Izdevumi[DATUMS],\"<=\"&D_beigas,Izdevumi[DATUMS],\">=\"&D_sākums)","v":{"v":0,"d":"0.00 €"}}]
[null,null,"Izdevumi 16-mēneša beigas",{"$f":"SUMIFS(Izdevumi[Summa],Izdevumi[DATUMS],\"<=\"&D_beigas,Izdevumi[DATUMS],\">=\"&D_vidus+1)","v":{"v":200,"d":"200.00 €"}},{"$f":"SUMIFS(Izdevumi[Summa],Izdevumi[DATUMS],\"<=\"&D_beigas,Izdevumi[DATUMS],\">=\"&D_vidus+1)","v":{"v":1000,"d":"1,000.00 €"}},{"$f":"SUMIFS(Izdevumi[Summa],Izdevumi[DATUMS],\"<=\"&D_beigas,Izdevumi[DATUMS],\">=\"&D_vidus+1)","v":{"v":0,"d":"0.00 €"}},{"$f":"SUMIFS(Izdevumi[Summa],Izdevumi[DATUMS],\"<=\"&D_beigas,Izdevumi[DATUMS],\">=\"&D_vidus+1)","v":{"v":0,"d":"0.00 €"}},{"$f":"SUMIFS(Izdevumi[Summa],Izdevumi[DATUMS],\"<=\"&D_beigas,Izdevumi[DATUMS],\">=\"&D_vidus+1)","v":{"v":0,"d":"0.00 €"}},{"$f":"SUMIFS(Izdevumi[Summa],Izdevumi[DATUMS],\"<=\"&D_beigas,Izdevumi[DATUMS],\">=\"&D_vidus+1)","v":{"v":0,"d":"0.00 €"}},{"$f":"SUMIFS(Izdevumi[Summa],Izdevumi[DATUMS],\"<=\"&D_beigas,Izdevumi[DATUMS],\">=\"&D_vidus+1)","v":{"v":0,"d":"0.00 €"}},{"$f":"SUMIFS(Izdevumi[Summa],Izdevumi[DATUMS],\"<=\"&D_beigas,Izdevumi[DATUMS],\">=\"&D_vidus+1)","v":{"v":0,"d":"0.00 €"}},{"$f":"SUMIFS(Izdevumi[Summa],Izdevumi[DATUMS],\"<=\"&D_beigas,Izdevumi[DATUMS],\">=\"&D_vidus+1)","v":{"v":0,"d":"0.00 €"}},{"$f":"SUMIFS(Izdevumi[Summa],Izdevumi[DATUMS],\"<=\"&D_beigas,Izdevumi[DATUMS],\">=\"&D_vidus+1)","v":{"v":0,"d":"0.00 €"}},{"$f":"SUMIFS(Izdevumi[Summa],Izdevumi[DATUMS],\"<=\"&D_beigas,Izdevumi[DATUMS],\">=\"&D_vidus+1)","v":{"v":0,"d":"0.00 €"}},{"$f":"SUMIFS(Izdevumi[Summa],Izdevumi[DATUMS],\"<=\"&D_beigas,Izdevumi[DATUMS],\">=\"&D_vidus+1)","v":{"v":0,"d":"0.00 €"}}]

{"sheet":"Ienākumi un izdevumi","index":1,"n_rows":40,"n_cols":10,"rows_kept":40}
[]
[null,null,"Mājas budžets 2 nedēļām",{"$nulls":6},"IENĀKUMI UN IZDEVUMI"]
[]
[]
[]
[null,null,"IEŅĒMUMI",{"$nulls":3},"IZDEVUMI"]
[]
[null,null,"DATUMS","APRAKSTS","Summa",null,"DATUMS","KATEGORIJA","APRAKSTS","Summa"]
[null,null,{"$f":"NOW()-14","v":"2014-03-31T13:24:10.780"},"Jāņa algas čeks",{"v":1300,"d":"1,300.00 €"},null,{"$f":"NOW()-7","v":"2014-04-07T13:24:10.780"},"Mājsaimniecība","Hipotēka",{"v":1000,"d":"1,000.00 €"}]
[null,null,{"$f":"NOW()-14","v":"2014-03-31T13:24:10.780"},"Ilzes algas čeks",{"v":1300,"d":"1,300.00 €"},null,{"$f":"NOW()-7","v":"2014-04-07T13:24:10.780"},"Mājsaimniecība","Elektrība",{"v":100,"d":"100.00 €"}]
[null,null,{"$f":"NOW()-28","v":"2014-03-17T13:24:10.780"},"Jāņa algas čeks",{"v":1500,"d":"1,500.00 €"},null,"2014-04-07T13:24:10.780","Mājsaimniecība","Ūdens/kanalizācija",{"v":50,"d":"50.00 €"}]
[null,null,"2014-03-17T13:24:10.780","Ilzes algas čeks",{"v":1600,"d":"1,600.00 €"},null,"2014-04-07T13:24:10.780","Mājsaimniecība","Atkritumu izvešana",{"v":25,"d":"25.00 €"}]
[null,null,{"$f":"NOW()-42","v":"2014-03-03T13:24:10.780"},"Jāņa algas čeks",{"v":1300,"d":"1,300.00 €"},null,"2014-04-07T13:24:10.780","Mājsaimniecība","Mobilais tālrunis",{"v":100,"d":"100.00 €"}]
[null,null,"2014-03-03T13:24:10.780","Ilzes algas čeks",{"v":1300,"d":"1,300.00 €"},null,"2014-04-07T13:24:10.780","Mājsaimniecība","Tālrunis mājās",{"v":30,"d":"30.00 €"}]
[null,null,{"$f":"NOW()-56","v":"2014-02-17T13:24:10.780"},"Jāņa algas čeks",{"v":1500,"d":"1,500.00 €"},null,"2014-04-07T13:24:10.780","Mājsaimniecība","Internets",{"v":50,"d":"50.00 €"}]
[null,null,"2014-02-17T13:24:10.780","Ilzes algas čeks",{"v":1600,"d":"1,600.00 €"},null,"2014-04-07T13:24:10.780","Mājsaimniecība","Televīzija",{"v":50,"d":"50.00 €"}]
[null,null,{"$f":"NOW()-70","v":"2014-02-03T13:24:10.780"},"Jāņa algas čeks",{"v":1300,"d":"1,300.00 €"},null,"2014-04-07T13:24:10.780","Mājsaimniecība","Tehniskā apkope/remonts",{"v":25,"d":"25.00 €"}]
[{"$nulls":6},{"$f":"NOW()-8","v":"2014-04-06T13:24:10.780"},"Mājsaimniecība","1. kredītkarte ",{"v":100,"d":"100.00 €"}]
[{"$nulls":6},{"$f":"NOW()-9","v":"2014-04-05T13:24:10.780"},"Izklaide","Filmas",{"v":37,"d":"37.00 €"}]
[{"$nulls":6},{"$f":"NOW()-10","v":"2014-04-04T13:24:10.780"},"Pārtika","Pārtika",{"v":350,"d":"350.00 €"}]
[{"$nulls":6},{"$f":"NOW()-11","v":"2014-04-03T13:24:10.780"},"Pārtika","Ēšana ārpus mājas",{"v":75,"d":"75.00 €"}]
[{"$nulls":6},{"$f":"NOW()-12","v":"2014-04-02T13:24:10.780"},"Bērni","Pusdienu nauda",{"v":150,"d":"150.00 €"}]
[{"$nulls":6},{"$f":"NOW()-13","v":"2014-04-01T13:24:10.780"},"Investīciju konti","Ietaupījumi",{"v":250,"d":"250.00 €"}]
[{"$nulls":6},{"$f":"NOW()-14","v":"2014-03-31T13:24:10.780"},"Investīciju konti","Investīciju konts",{"v":250,"d":"250.00 €"}]
[{"$nulls":6},{"$f":"NOW()-15","v":"2014-03-30T13:24:10.780"},"Personiski","Veselība/fitnesa klubs",{"v":100,"d":"100.00 €"}]
[{"$nulls":6},{"$f":"NOW()-16","v":"2014-03-29T13:24:10.780"},"Mājdzīvnieki","Pārtika",{"v":50,"d":"50.00 €"}]
[{"$nulls":6},{"$f":"NOW()-20","v":"2014-03-25T13:24:10.780"},"Mājdzīvnieki","Nauda randiņiem",{"v":50,"d":"50.00 €"}]
[{"$nulls":6},{"$f":"NOW()-20","v":"2014-03-25T13:24:10.780"},"Mājdzīvnieki","Citi",{"v":50,"d":"50.00 €"}]
[{"$nulls":6},{"$f":"NOW()-25","v":"2014-03-20T13:24:10.780"},"Transports","Maksājums par 1. mašīnu ",{"v":300,"d":"300.00 €"}]
[{"$nulls":6},{"$f":"NOW()-25","v":"2014-03-20T13:24:10.780"},"Transports","Maksājums par 2. mašīnu ",{"v":350,"d":"350.00 €"}]
[{"$nulls":6},{"$f":"NOW()-25","v":"2014-03-20T13:24:10.780"},"Transports","Automašīnas apdrošināšana",{"v":50,"d":"50.00 €"}]
[{"$nulls":6},{"$f":"NOW()-30","v":"2014-03-15T13:24:10.780"},"Transports","Degviela",{"v":50,"d":"50.00 €"}]
[{"$nulls":6},{"$f":"NOW()-31","v":"2014-03-14T13:24:10.780"},"Transports","Degviela",{"v":25,"d":"25.00 €"}]
[{"$nulls":6},{"$f":"NOW()-42","v":"2014-03-03T13:24:10.780"},"Transports","Tehniskā apkope/remonts",{"v":150,"d":"150.00 €"}]
[{"$nulls":6},{"$f":"NOW()-45","v":"2014-02-28T13:24:10.780"},"Mājsaimniecība","Hipotēka",{"v":5000,"d":"5,000.00 €"}]
[{"$nulls":6},{"$f":"NOW()-50","v":"2014-02-23T13:24:10.780"},"Mājsaimniecība","Krājumi",{"v":200,"d":"200.00 €"}]
[{"$nulls":6},{"$f":"NOW()-65","v":"2014-02-08T13:24:10.780"},"Mājsaimniecība","Tālrunis mājās",{"v":100,"d":"100.00 €"}]
[{"$nulls":6},{"$f":"NOW()-70","v":"2014-02-03T13:24:10.780"},"Mājsaimniecība","Atkritumu izvešana",{"v":50,"d":"50.00 €"}]
[{"$nulls":6},{"$f":"NOW()-75","v":"2014-01-29T13:24:10.780"},"Mājsaimniecība","Hipotēka",{"v":1000,"d":"1,000.00 €"}]
[{"$nulls":6},{"$f":"NOW()-78","v":"2014-01-26T13:24:10.780"},"Izklaide","Filmas",{"v":75,"d":"75.00 €"}]

{"sheet":"Budžeta atskaite","index":2,"n_rows":40,"n_cols":8,"rows_kept":40}
[]
[null,null,"Mājas budžets 2 nedēļām",{"$nulls":4},"BUDŽETA ATSKAITE"]
{"$rows_empty":10}
[null,null,"IZDEVUMI",null,null,"KATEGORIJAS KOPSUMMA"]
[]
[null,null,"APRAKSTS","SUMMA "]
[null,null,"1. kredītkarte ",{"v":100,"d":"100.00 €"}]
[null,null,"Atkritumu izvešana",{"v":75,"d":"75.00 €"}]
[null,null,"Automašīnas apdrošināšana",{"v":50,"d":"50.00 €"}]
[null,null,"Citi",{"v":50,"d":"50.00 €"}]
[null,null,"Degviela",{"v":75,"d":"75.00 €"}]
[null,null,"Elektrība",{"v":100,"d":"100.00 €"}]
[null,null,"Ēšana ārpus mājas",{"v":75,"d":"75.00 €"}]
[null,null,"Filmas",{"v":112,"d":"112.00 €"}]
[null,null,"Hipotēka",{"v":7000,"d":"7,000.00 €"}]
[null,null,"Ietaupījumi",{"v":250,"d":"250.00 €"}]
[null,null,"Internets",{"v":50,"d":"50.00 €"}]
[null,null,"Investīciju konts",{"v":250,"d":"250.00 €"}]
[null,null,"Krājumi",{"v":200,"d":"200.00 €"}]
[null,null,"Maksājums par 1. mašīnu ",{"v":300,"d":"300.00 €"}]
[null,null,"Maksājums par 2. mašīnu ",{"v":350,"d":"350.00 €"}]
[null,null,"Mobilais tālrunis",{"v":100,"d":"100.00 €"}]
[null,null,"Nauda randiņiem",{"v":50,"d":"50.00 €"}]
[null,null,"Pārtika",{"v":400,"d":"400.00 €"}]
[null,null,"Pusdienu nauda",{"v":150,"d":"150.00 €"}]
[null,null,"Tālrunis mājās",{"v":130,"d":"130.00 €"}]
[null,null,"Tehniskā apkope/remonts",{"v":175,"d":"175.00 €"}]
[null,null,"Televīzija",{"v":50,"d":"50.00 €"}]
[null,null,"Ūdens/kanalizācija",{"v":50,"d":"50.00 €"}]
[null,null,"Veselība/fitnesa klubs",{"v":100,"d":"100.00 €"}]
[null,null,"KOPĀ",{"v":10242,"d":"10,242.00 €"}]

{"sheet":"Datu saraksti","index":3,"n_rows":20,"n_cols":14,"rows_kept":20}
[]
[null,null,"Mājas budžets 2 nedēļām",{"$nulls":10},"DATU SARAKSTI"]
[]
[]
[null,null,"IESTATĪŠANA         Zemāk esošie kategoriju dati aizpilda izdevumu tabulas nolaižamos sarakstus lapā Izdevumi un ienākumi. Mainiet kategoriju nosaukumus vai zem katras kategorijas esošos aprakstus, lai atjauninātu sarakstus."]
[]
[null,null,"Mājsaimniecība","Izklaide","Pārtika","Dāvanas/ziedojumi","Bērni","Investīciju konti","Medicīnas izdevumi","Citi","Personiski","Mājdzīvnieki","Nodokļi/juridiskie maksājumi","Transports"]
[null,null,"Hipotēka","Filmas","Pārtika","1. ziedojums","Apģērbs","Iemaksas pensijas kontā","Ārsts/slimnīca","Citi","Apģērbs","Pārtika","Valsts/reģions","Maksājums par 1. mašīnu "]
[null,null,"Elektrība","Video/filmas","Ēšana ārpus mājas","2. ziedojums","Rotaļlietas/spēles","Ietaupījumi","Apdrošināšana","Organizatoriskie maksājumi","Mati/nagi","Krājumi","Novads","Maksājums par 2. mašīnu "]
[null,null,"Ūdens/kanalizācija","Mūzika",null,"3. ziedojums","Pusdienu nauda","Čeki",null,null,"Ķīmiskā tīrītava","Medicīnas izdevumi","Vietējais","Automašīnas apdrošināšana"]
[null,null,"Atkritumu izvešana","Koncerti/teātra izrādes",null,"Dāvanas","Nodevas/biedra naudas","Aiziešana pensijā",null,null,"Veselība/fitnesa klubs","Nauda randiņiem","Citi","Licence/reģistrācija"]
[null,null,"Mobilais tālrunis","Sporta pasākumi",null,null,"Skolas piederumi","Investīciju konts",null,null,"Iepirkšanās","Citi","Advokāts","Degviela"]
[null,null,"Tālrunis mājās","Citi",null,null,"Citi","Koledža",null,null,"Citi",null,"Bērnu atbalstīšana","Tehniskā apkope/remonts"]
[null,null,"Internets",{"$nulls":3},"Veļas mazgāšana","Aizņēmumi",{"$nulls":4},"Alimenti","Sabiedriskais transports"]
[null,null,"Televīzija",{"$nulls":4},"Studiju aizdevums",{"$nulls":4},"Citi"]
[null,null,"Tehniskā apkope/remonts"]
[null,null,"Krājumi"]
[null,null,"Kabeļtelevīzija/internets/tālrunis"]
[null,null,"1. kredītkarte "]
[null,null,"2. kredītkarte "]

{"sheet":"Kategoriju rakurstabula","index":4,"n_rows":16,"n_cols":14,"rows_kept":16,"hidden":true}
[]
[null,null,"Mājas budžets 2 nedēļām",{"$nulls":10},"KATEGORIJAS RAKURSS"]
[]
[]
[null,"Šī rakurstabula ir datu avots budžeta atskaites rakursdiagrammai Kategoriju kopsumma. "]
[]
[null,null,"Rindu etiķetes","Sum of Summa"]
[null,null,"Bērni",{"v":150,"d":"150 €"}]
[null,null,"Investīciju konti",{"v":500,"d":"500 €"}]
[null,null,"Izklaide",{"v":112,"d":"112 €"}]
[null,null,"Mājdzīvnieki",{"v":150,"d":"150 €"}]
[null,null,"Mājsaimniecība",{"v":7880,"d":"7,880 €"}]
[null,null,"Pārtika",{"v":425,"d":"425 €"}]
[null,null,"Personiski",{"v":100,"d":"100 €"}]
[null,null,"Transports",{"v":925,"d":"925 €"}]
[null,null,"Gala summa",{"v":10242,"d":"10,242 €"}]